Cogmind - Beta 13 @@@ ROGUE MODE // 2024.03.30 @ 17:34:05 Player: MORONI274 Result: Destroyed by G-47 Trooper with Particle Gun Performance ------------- Evolutions (0) 0 Regions Visited (1) 200 Robots Destroyed (6) 30 Value Destroyed (188) 188 Prototype IDs (0) 0 Alien Tech Used (0) 0 Bonus (0) 0 TOTAL SCORE: 418 Bonus ------- None Cogmind --------- Core Integrity 0/250 Matter 279/300 Energy 100/100 System Corruption 1% Temperature Cool (9) Movement Core (100) Ox1 Location -10/Materials Parts ------- > --- POWER (1) -------- (None) > --- PROPULSION (2) --- Light Treads > --- UTILITY (2) ------ Heat Sink Small Storage Unit > --- WEAPON (2) ------- (None) > --- INVENTORY (8) ---- Ion Engine Light Ion Engine Aluminum Leg Aluminum Leg Wheel High-capacity Storage Unit Small Laser Datajack Peak State ------------ > --- POWER ------------ Light Ion Engine > --- PROPULSION ------- Light Treads Light Treads > --- UTILITY ---------- Small Storage Unit > --- WEAPON ----------- EM Pulse Gun Small Laser > --- INVENTORY -------- Ion Engine Wheel [Rating: 6] Favorites ----------- Power Light Ion Engine Engine Light Ion Engine Propulsion Light Treads Treads Light Treads Utility Small Storage Unit Device Heat Sink Storage Small Storage Unit Weapon Small Laser Energy Gun Small Laser Launcher Grenade Launcher Build | -11 -10 ------- Run | Yrd Mat Slots Evolved . | . . Power . | . . Propulsion . | . . Utility . | . . Weapon . | . . Parts Attached 11 | 7 4 Power 2 | 1 1 Engine 2 | 1 1 Core . | . . Reactor . | . . Propulsion 3 | 3 . Treads 3 | 3 . Leg . | . . Wheel . | . . Hover . | . . Flight . | . . Utility 2 | 1 1 Device 1 | . 1 Storage 1 | 1 . Processor . | . . Hackware . | . . Protection . | . . Artifact . | . . Weapon 4 | 2 2 Energy Gun 3 | 2 1 Energy Cannon . | . . Ballistic Gun . | . . Ballistic Cannon . | . . Launcher 1 | . 1 Special Weapon . | . . Impact Weapon . | . . Slashing Weapon . | . . Piercing Weapon . | . . Special Melee Weapon . | . . Unidentified Prototypes . | . . Corrupted Parts 1 | . 1 System Corruption 1 | . 1 Parts Lost 6 | . 6 Power 2 | . 2 Propulsion 1 | . 1 Utility . | . . Weapon 3 | . 3 Highest Loss Streak 3 | . 3 To Critical Strikes . | . . Average Slot Usage (%) 77 | . 77 Engine 12 | . 12 Treads 22 | . 22 Device 4 | . 4 Storage 14 | . 14 Energy Gun 22 | . 22 Naked Turns . | . . Heaviest Build 14 | 11 14 Greatest Support 40 | 40 40 Greatest Overweight (x) 4 | . 4 Average Overweight (x) 1 | . 2 Largest Inventory Capacity 8 | 8 8 Average Capacity 7 | 7 8 Most Carried 8 | 5 8 Average Carried 5 | 4 6 Final Capacity 8 | 8 8 Final Carried 8 | 5 8 Class Distribution -------------------- 100% | Mutant Dominant Class ---------------- Mutant | -10/Materials Resources | -11 -10 ----------- Run | Yrd Mat Matter Collected 304 | 256 48 Remotely . | . . Salvage Created 209 | . 209 Parts 12 | . 12 Haulers Intercepted . | . . Recyclers Shooed 1 | . 1 Parts Field Recycled . | . . Retrieved Matter . | . . Parts Self-Destructed . | . . Prevented . | . . Kills | -11 -10 ------- Run | Yrd Mat Combat Hostiles Destroyed 4 | . 4 Guns 3 | . 3 AOE 1 | . 1 Classes Destroyed 3 | . 3 Recycler 1 | . 1 Watcher 1 | . 1 Grunt 4 | . 4 Best Kill Streak 4 | . 4 Combat Bots Only 2 | . 2 Max Kills in Single Turn 3 | . 3 Gunslinging . | . . Exploded 1 | . 1 Melee . | . . Uniques/NPCs Destroyed . | . . Combat | -11 -10 -------- Run | Yrd Mat Hostile Shots Fired 76 | . 76 Missed 18 | . 18 Damage Taken 855 | . 855 Core 262 | . 262 Absorbed by Shields . | . . Core Remaining (%) 100 | 100 . Volleys Fired 20 | . 20 Largest 2 | . 2 Hottest 80 | . 80 Shots Fired 39 | . 39 Gun 35 | . 35 Cannon . | . . Launcher 4 | . 4 Special . | . . Kinetic . | . . Thermal 20 | . 20 Explosive 4 | . 4 Electromagnetic 15 | . 15 Robot Hit Streak 13 | . 13 Robot Miss Streak 2 | . 2 Penetration Max . | . . Secondary Targets . | . . Shots Hit Robots 20 | . 20 Core Hits 12 | . 12 Critical Kills . | . . Critical Parts Destroyed . | . . Critical Strikes . | . . Melee Attacks . | . . Impact . | . . Slashing . | . . Piercing . | . . Sneak Attacks . | . . Combat Hostiles . | . . Follow-up Attacks . | . . Damage Inflicted 458 | . 458 Guns 210 | . 210 Cannons . | . . Explosions 248 | . 248 Melee . | . . Ramming . | . . Kinetic . | . . Thermal 121 | . 121 Explosive 248 | . 248 Electromagnetic 89 | . 89 Impact . | . . Slashing . | . . Piercing . | . . Highest Corruption 1 | . 1 Average Corruption 1 | . 1 Corruption Purged . | . . Corruption Blocked . | . . Effects 3 | . 3 Message Errors 1 | . 1 Heat Flow Errors 1 | . 1 Data Loss (minor) 1 | . 1 Overload Shots . | . . Overflow Damage 87 | . 87 Projectiles . | . . Explosions 87 | . 87 Melee . | . . Knockbacks . | . . Impact . | . . Kinetic . | . . Secondary . | . . Self-Inflicted Damage 153 | . 153 Shots 4 | . 4 Rammed . | . . Targets Rammed . | . . Kicked . | . . Crushed . | . . Highest Temperature 238 | . 238 Average Temperature 96 | . 96 Received Heat Transfer 408 | . 408 Siege Activations . | . . Robots Corrupted . | . . Combat Hostiles . | . . Parts Fried . | . . Impact Corruptions . | . . Robots Melted . | . . Combat Hostiles . | . . Parts Melted . | . . Heat Transferred 275 | . 275 Parts Sabotaged . | . . Parts Stolen . | . . Parts Stripped . | . . Power Chain Reactions . | . . Alert | -11 -10 ------- Run | Yrd Mat Peak Influence 168 | . 168 Initial . | . . Average 47 | . 80 Maximum Alert Level . | . . Low Security (%) 100 | 100 100 Level 1 . | . . Level 2 . | . . Level 3 . | . . Level 4 . | . . Level 5 . | . . High Security . | . . Max Security . | . . Squads Dispatched 1 | . 1 Investigation . | . . Extermination . | . . Reinforcement 1 | . 1 Assault . | . . Garrison . | . . Intercept . | . . Searches Triggered . | . . Construction Impeded . | . . Haulers Reinforced . | . . Active Scanning Responses . | . . Cargo Convoy Interrupts . | . . Stealth | -11 -10 --------- Run | Yrd Mat Distress Signals 1 | . 1 Communications Jammed . | . . Distress Signals . | . . Times Spotted 9 | . 9 Peak Tracking Total 3 | . 3 Tactical Retreats . | . . Traps | -11 -10 ------- Run | Yrd Mat Traps Triggered . | . . Indirectly . | . . Trap Hack Attempts . | . . Triggered . | . . Disarmed . | . . Reprogrammed . | . . Reused . | . . Traps Extracted . | . . Installed . | . . Triggered . | . . Machines | -11 -10 ---------- Run | Yrd Mat Machines Disabled 3 | . 3 Max in Single Turn 1 | . 1 Machines Repaired . | . . Machines Dismantled . | . . Machines Sabotaged . | . . Overloaded Fab Kills . | . . Hacking | -11 -10 --------- Run | Yrd Mat Machines Accessed 1 | . 1 Terminals 1 | . 1 Fabricators . | . . Repair Stations . | . . Recycling Units . | . . Scanalyzers . | . . Garrison Access . | . . Total Hacks 3 | . 3 Successful 2 | . 2 Failed 1 | . 1 Catastrophic . | . . Database Lockouts . | . . Manual . | . . Terminals 3 | . 3 Fabricators . | . . Repair Stations . | . . Recycling Units . | . . Scanalyzers . | . . Garrison Access . | . . Terminal Hacks 2 | . 2 Record 1 | . 1 Alert Level 1 | . 1 Fabricator Hacks . | . . Repair Station Hacks . | . . Recycling Unit Hacks . | . . Scanalyzer . | . . Garrison Access Hacks . | . . Unauthorized Hacks . | . . Terminals . | . . Fabricators . | . . Repair Stations . | . . Recycling Units . | . . Scanalyzers . | . . Garrison Access . | . . Data Cores Recovered . | . . Used . | . . Hacking Detections 1 | . 1 Full Trace Events . | . . Feedback Events . | . . Feedback Blocked . | . . Robot Schematics Acquired . | . . Robots Built . | . . Authchips . | . . Time . | . . Total Robot Build Rating . | . . Part Schematics Acquired . | . . Parts Built . | . . Authchips . | . . Time . | . . Total Part Build Rating . | . . Parts Repaired . | . . Time . | . . Parts Recycled . | . . Recycled Matter . | . . Retrieved Matter . | . . Retrieved Components . | . . Parts Scanalyzed . | . . Part Schematics Acquired . | . . Parts Damaged . | . . Bothacking | -11 -10 ------------ Run | Yrd Mat Used RIF Installer . | . . Robots Hacked . | . . Non-combat . | . . Combat . | . . Robot Hacks Applied . | . . Relay Couplers Released . | . . Fabnet Peak Effective % . | . . Robots Rewired . | . . Allies Hacked . | . . Hacks Repelled . | . . Allies | -11 -10 -------- Run | Yrd Mat Total Allies . | . . Largest Group . | . . Highest-Rated Group . | . . Highest-Rated Ally . | . . Total Orders . | . . Ally Attacks . | . . Total Damage . | . . Kills . | . . Allies Corrupted . | . . Allies Melted . | . . Intel | -11 -10 ------- Run | Yrd Mat Robot Analysis Total . | . . Derelict Logs Recovered . | . . Drone Launches . | . . Drone Recoveries . | . . Exploration | -11 -10 ------------- Run | Yrd Mat Turns Passed 649 | 263 386 Spaces Moved 345 | 171 174 Core 155 | 26 129 Treads 190 | 145 45 Legs . | . . Wheels . | . . Hover . | . . Flight . | . . Fastest Speed 50 | 50 100 Average Speed 162 | 143 181 Slowest Speed 250 | 160 250 Overloaded Moves . | . . Propulsion Burnouts . | . . Robots Hopped . | . . Cave-ins Triggered . | . . Exploration Rate (%) 16 | 10 22 Regions Visited 1 Branch Regions . Pre-discovered Areas . | . . Known Exits Taken . | . . Unknown Exits Taken 1 | 1 . Scrap Searched . | . . Spaces Dug . | . . Terrain Destroyed 34 | . 34 Melee . | . . Projectile . | . . AOE 34 | . 34 Terrain Rammed . | . . Walls Destroyed . | . . Machines Disabled . | . . Actions | -11 -10 --------- Run | Yrd Mat Total 394 | 190 204 Wait . | . . Move 344 | 170 174 Hop . | . . Pick Up 18 | 12 6 Fast Attach . | . . Attach 9 | 6 3 Detach . | . . Swap 2 | 1 1 Drop 1 | 1 . Fire 20 | . 20 Melee . | . . Ram . | . . Kick . | . . Crush . | . . Escape Stasis . | . . Rewire . | . . Trap . | . . Miscellaneous . | . . Route ------- -11/Scrapyard -10/Materials History --------- Turn | Location | Event 6 | -11/Scrapyard | Discovered new exit (range 14) 264 | -11/Scrapyard | Entered Materials 303 | -10/Materials | Build established: Mutant 519 | -10/Materials | Core integrity fell below 50% 549 | -10/Materials | Lost 3 parts (1p1n1w) 628 | -10/Materials | Core integrity fell below 20% 650 | -10/Materials | Destroyed by G-47 Trooper with Particle Gun Last Messages --------------- >>Query(Lightweight Power Sources) Many engines, cores, and reactors have an alternative lightweight variant that retains the generation efficiency of its standard version but minimizes built-in battery space to reduce weight for certain robot designs, especially those with strict weight restrictions such as hovering and flight-based models. 00567_ U-05 Engineer lays Concrete. 00569_ U-05 Engineer builds a Wall. 00590_ System corrupted: Component data lost. 00595_ Acquired Lgt. Ion Engine. 00611_ EM Pulse Gun destroyed. 00617_ Critical hit (Burn: +37). 00626_ G-34 Mercenary misfires. 00634_ Ion Engine destroyed. 00636_ Sml. Laser destroyed. 00637_ Acquired Hcp. Storage Unit. 00639_ Acquired Datajack. 00641_ System corrupted: Heat flow error (+219). 00641_ G-34 Mercenary misfires. Map ----- +----------------------------------------------------+ | ?????????????????????????????????????????? | | ?????????????????????????????????????????? | | ????????????????????????????????? +?????? | | ???????????????????????????????? #?????? | | ??????????????????????????????? #?????? | | ???????????????????????????????# #?????? | | ???????????????????????????????# #?????? | | ???????????????????????????????# #?????? | | ???????????????????????????????# #?????? | | ???????????????????????????????# #?????? | | ???????????????????????????????# #?????? | | ???????????????????????????????+ #?????? | | ?????????? ????????????????????# #????? | | ????????#? ???????????######### ##??? | | ????????? ? ???????????# # #? | | ?????????? ??????????# # # """? | | ??????????? ??????????# " " ""?? | | ???????????? ?????????# """ # # ""?? | | ????????????? ?????????# """ # #????? | | ?????????????# ????????# """ ## ##????? | | ?????????????# #########t ## #?????? | | ?????????????# g =## #?????? | | ?????????????# # ## ####### | | ?????????????# # ## # | | ?????????????# / !! ## # | | ?????????????####@###### ! ## # " | | ????????????????# #????######### + | | ????????????????# #?????????# # ####### | | ????????????????# ????????## # ######? | | ????????????????# ????????# ##+## #? | | ????????????????# ???????## * #? | | ????????????????# ???????# #? | | ????????????????# ??????# #? | | ???????????????? ??????# ##? | | ???????????????? ##??????# #?? | | ???????????????? ????????# #?? | | ????????????????##????????## #?? | | ?????????????????????????### ###?? | | ?????????????????????????# # ######? | | ?????????????????????????# % # ##"""#? | | ?????????????????????????# "" "" # ##"T"#? | | ?????????????????????????# """"" # ##" "## | | ?????????????????????????# """""%# | | ?????????????????????????# / | | ?????????????????????????# """"" # | | ?????????????????????????# """"" ###### | | ?????????????????????????# """"" #????# | | ?????????????????????????# #????#### | | ?????????????????????????# #???????? | | ?????????????????????????#########???????? | +----------------------------------------------------+ Best States ------------- Heat Dissipation 35 Energy Generation 10 Energy Capacity 250 Matter Stores 300 Matter Capacity 300 Sight Range 16 Terrain Scan Density 10 Evasion (%) 50 Recoil Reduction 2 Item Schematics ----------------- None Robot Schematics ------------------ None Fabricated ------------ Nothing Alien Tech Used ----------------- None Achievements -------------- Crack Shot Challenges ------------ None Game ------ Seed FusionHackingKit Manual? 0 Play Time 00:09:11 Cumulative 0.8 hours Start 2024.03.30 @ 17:23:09 End 2024.03.30 @ 17:34:05 Sessions 5 Manual Loads 0 Difficulty Rogue Special Mode None Game No. 3 Rogue 3 Adventurer 0 Explorer 0 Win Type - Total 0 Types 0/0/0/0/0/0/0/0/0 Lore% 0 Gallery% 2 Achievement% 2 Wizard Run 0 Options --------- Layout 2 ASCII 0 Keyboard 0 Movement Arrows Keybinds 0 Fullscreen 0 Font 14/SmallcapsGlow Map View 59x54 Zoom Use 0% Tactical HUD 1 Map Filters NONE Filters NONE Steam SD RUN: 3cf0dfe9-8761-44ac-81e3-6c27373b897a